fUST/lending_fUST_20250724
["ID","MTS","AMOUNT","RATE_DAILY","PERIOD"]
[374497865,1753325432919,-460.0,0.00019178,2]
[374497867,1753325432928,-460.0,0.00019178,2]
[374497869,1753325432937,-460.86833048,0.00019178,2]
[374497871,1753325432947,-460.0,0.00019178,2]
[374497873,1753325432957,-460.95469944,0.00019178,2]
[374497875,1753325432967,-460.0,0.00019178,2]
[374497877,1753325432976,-438.39330427,0.00019178,2]
[374497879,1753325432986,-460.0,0.00019178,2]
[374497881,1753325432996,-460.0,0.00019178,2]
[374497883,1753325433006,-460.0,0.00019178,2]
[374497885,1753325433015,-460.0,0.00019178,2]
[374497887,1753325433025,-464.07652316,0.00019178,2]
[374497889,1753325433034,-460.0,0.00019178,2]
[374497891,1753325433044,-460.0,0.00019178,2]
[374497893,1753325433053,-460.0,0.00019178,2]
[374497895,1753325433063,-460.0,0.00019178,2]
[374497897,1753325433073,-460.0,0.00019178,2]
[374497899,1753325433082,-460.0,0.00019178,2]
[374497901,1753325433092,-467.94471371,0.00019178,2]
[374497903,1753325433102,-460.0,0.00019178,2]
[374497905,1753325433111,-460.0,0.00019178,2]
[374497907,1753325433122,-460.0,0.00019178,2]
[374497909,1753325433131,-462.97137402,0.00019178,2]
[374497911,1753325433140,-460.0,0.00019178,2]
[374497913,1753325433150,-460.0,0.00019178,2]
[374497915,1753325433160,-460.0,0.00019178,2]
[374497917,1753325433171,-461.55949861,0.00019178,2]
[374497919,1753325433182,-461.26990712,0.00019178,2]
[374497921,1753325433192,-463.42981445,0.00019178,2]
[374497923,1753325433201,-464.84251057,0.00019178,2]
[374497925,1753325433211,-463.45699019,0.00019178,2]
[374497927,1753325433221,-461.67669505,0.00019178,2]
[374497929,1753325433232,-460.0,0.00019178,2]
[374497931,1753325433242,-151.0,0.00019178,2]
[374497933,1753325433253,-460.0,0.00019178,2]
[374497935,1753325433262,-460.0,0.00019178,2]
[374497937,1753325433272,-462.95048974,0.00019178,2]
[374497939,1753325433282,-151.0,0.00019178,2]
[374497940,1753325433292,-460.0,0.00019178,2]
[374497943,1753325433302,-471.10524538,0.00019178,2]
[374497945,1753325433312,-462.53152285,0.00019178,2]
[374497947,1753325433321,-420.77792997,0.00019178,2]
[374497949,1753325433332,-495.59765646,0.00019178,2]
[374497950,1753325433342,-460.0,0.00019178,2]
[374497952,1753325433352,-460.0,0.00019178,2]
[374497954,1753325433362,-460.0,0.00019178,2]
[374497956,1753325433372,-460.0,0.00019178,2]
[374497958,1753325433382,-464.61516258,0.00019178,2]
[374497960,1753325433391,-461.32226246,0.00019178,2]
[374497962,1753325433400,-460.0,0.00019178,2]
[374497964,1753325433410,-241.6944688,0.00019178,2]
[374497966,1753325433420,-460.0,0.00019178,2]
[374497968,1753325433430,-460.0,0.00019178,2]
[374497970,1753325433439,-460.0,0.00019178,2]
[374497972,1753325433449,-460.0,0.00019178,2]
[374497974,1753325433459,-460.0,0.00019178,2]
[374497976,1753325433468,-558.12756575,0.00019178,2]
[374497978,1753325433477,-460.0,0.00019178,2]
[374497980,1753325433487,-439.816677,0.00019178,2]
[374497982,1753325433497,-461.98873496,0.00019178,2]
[374497984,1753325433507,-399.14164294,0.00019178,2]
[374497986,1753325433517,-439.816677,0.00019178,2]
[374497987,1753325433527,-460.0,0.00019178,2]
[374497988,1753325433536,-464.48442416,0.00019178,2]
[374497989,1753325433546,-460.0,0.00019178,2]
[374497991,1753325433557,-508.79668977,0.00019178,2]
[374497993,1753325433567,-460.0,0.00019178,2]
[374497995,1753325433576,-460.0,0.00019178,2]
[374497997,1753325433586,-460.0,0.00019178,2]
[374497998,1753325433596,-278.2542511,0.00019178,2]
[374498000,1753325433605,-460.0,0.00019178,2]
[374498002,1753325433615,-460.0,0.00019178,2]
[374498004,1753325433625,-460.0,0.00019178,2]
[374498006,1753325433635,-460.0,0.00019178,2]
[374498008,1753325433643,-460.0,0.00019178,2]
[374498010,1753325433653,-460.0,0.00019178,2]
[374498012,1753325433663,-461.88577089,0.00019178,2]
[374498014,1753325433673,-275.39592443,0.00019178,2]
[374498016,1753325433684,-443.25031025,0.00019178,2]
[374498018,1753325433694,-375.90878528,0.00019178,2]
[374498020,1753325433706,-460.0,0.00019178,2]
[374498022,1753325433716,-461.0225293,0.00019178,2]
[374498024,1753325433726,-460.0,0.00019178,2]
[374498026,1753325433736,-461.8500331,0.00019178,2]
[374498028,1753325433744,-460.0,0.00019178,2]
[374498030,1753325433754,-460.0,0.00019178,2]
[374498032,1753325433764,-460.0,0.00019178,2]
[374498034,1753325433773,-460.0,0.00019178,2]
[374498035,1753325433783,-461.64210876,0.00019178,2]
[374498036,1753325433793,-460.0,0.00019178,2]
[374498037,1753325433803,-460.0,0.00019178,2]
[374498038,1753325433813,-462.31875812,0.00019178,2]
[374498039,1753325433822,-463.4686171,0.00019178,2]
[374498040,1753325433832,-455.30972045,0.00019178,2]
[374498041,1753325433842,-460.83521362,0.00019178,2]
[374498042,1753325433851,-462.99603587,0.00019178,2]
[374498043,1753325433861,-461.14928147,0.00019178,2]
[374498044,1753325433871,-460.0,0.00019178,2]
[374498045,1753325433880,-460.0,0.00019178,2]
[374498046,1753325433890,-460.0,0.00019178,2]
[374498048,1753325433900,-511.45905024,0.00019178,2]
[374498050,1753325433910,-460.0,0.00019178,2]
[374498052,1753325433920,-461.55163952,0.00019178,2]
[374498054,1753325433929,-462.8377648,0.00019178,2]
[374498056,1753325433939,-460.0,0.00019178,2]
[374498058,1753325433949,-460.0,0.00019178,2]
[374498060,1753325433959,-460.0,0.00019178,2]
[374498062,1753325433967,-875.5,0.00019178,2]
[374498064,1753325433977,-460.0,0.00019178,2]
[374498066,1753325433987,-460.0,0.00019178,2]
[374498068,1753325433996,-460.0,0.00019178,2]
[374498070,1753325434006,-460.0,0.00019178,2]
[374498071,1753325434015,-460.0,0.00019178,2]
[374498073,1753325434025,-460.0,0.00019178,2]
[374498076,1753325434035,-460.0,0.00019178,2]
[374498077,1753325434044,-460.0,0.00019178,2]
[374498079,1753325434054,-460.0,0.00019178,2]
[374498081,1753325434063,-460.0,0.00019178,2]
[374498083,1753325434072,-460.0,0.00019178,2]
[374498085,1753325434083,-460.0,0.00019178,2]
[374498087,1753325434093,-378.82303525,0.00019178,2]
[374498089,1753325434103,-461.27978944,0.00019178,2]
[374498091,1753325434113,-653.37,0.00019178,2]
[374498093,1753325434123,-460.0,0.00019178,2]
[374498095,1753325434133,-460.0,0.00019178,2]
[374498098,1753325434143,-460.0,0.00019178,2]
[374498100,1753325434153,-460.0,0.00019178,2]
[374498101,1753325434162,-463.36354086,0.00019178,2]
[374498104,1753325434173,-461.96548042,0.00019178,2]
[374498117,1753325434299,-462.77649244,0.00019178,2]
[374498119,1753325434309,-460.0,0.00019178,2]
[374498121,1753325434320,-460.0,0.00019178,2]
[374498123,1753325434329,-460.0,0.00019178,2]
[374498125,1753325434339,-461.01152605,0.00019178,2]
[374498127,1753325434351,-460.0,0.00019178,2]
[374498129,1753325434360,-461.75294858,0.00019178,2]
[374498131,1753325434370,-460.0,0.00019178,2]
[374498133,1753325434380,-460.0,0.00019178,2]
[374498135,1753325434389,-460.0,0.00019178,2]
[374498137,1753325434398,-462.07753179,0.00019178,2]
[374498139,1753325434408,-466.64719013,0.00019178,2]
[374498141,1753325434418,-460.0,0.00019178,2]
[374498143,1753325434427,-460.0,0.00019178,2]
[374498145,1753325434436,-504.78120731,0.00019178,2]
[374498147,1753325434446,-460.0,0.00019178,2]
[374498149,1753325434456,-501.64984872,0.00019178,2]
[374498151,1753325434465,-662.7,0.00019178,2]
[374498153,1753325434475,-460.0,0.00019178,2]
[374498155,1753325434486,-460.0,0.00019178,2]
[374498157,1753325434495,-460.0,0.00019178,2]
[374498159,1753325434505,-462.75545981,0.00019178,2]
[374498161,1753325434515,-500.0,0.00019178,2]
[374498163,1753325434524,-462.64099831,0.00019178,2]
[374498165,1753325434534,-462.02748552,0.00019178,2]
[374498167,1753325434543,-500.0,0.00019178,2]
[374498169,1753325434553,-460.0,0.00019178,2]
[374498171,1753325434563,-460.0,0.00019178,2]
[374498173,1753325434572,-243.2304858,0.00019178,2]
[374498175,1753325434582,-504.25896068,0.00019178,2]
[374498177,1753325434592,-460.0,0.00019178,2]
[374498179,1753325434602,-460.0,0.00019178,2]
[374498181,1753325434611,-460.0,0.00019178,2]
[374498183,1753325434622,-464.25680606,0.00019178,2]
[374498185,1753325434631,-460.0,0.00019178,2]
[374498187,1753325434641,-460.0,0.00019178,2]
[374498189,1753325434650,-463.93203991,0.00019178,2]
[374498191,1753325434659,-460.5086889,0.00019178,2]
[374498193,1753325434669,-460.0,0.00019178,2]
[374498195,1753325434680,-461.07421055,0.00019178,2]
[374498197,1753325434690,-460.0,0.00019178,2]
[374498199,1753325434700,-460.0,0.00019178,2]
[374498201,1753325434710,-460.0,0.00019178,2]
[374498203,1753325434719,-460.0,0.00019178,2]
[374498205,1753325434729,-460.0,0.00019178,2]
[374498207,1753325434738,-460.0,0.00019178,2]
[374498209,1753325434747,-460.0,0.00019178,2]
[374498211,1753325434756,-460.0,0.00019178,2]
[374498213,1753325434766,-460.0,0.00019178,2]
[374498215,1753325434775,-461.36162306,0.00019178,2]
[374498217,1753325434784,-460.0,0.00019178,2]
[374498219,1753325434793,-460.0,0.00019178,2]
[374498221,1753325434803,-460.0,0.00019178,2]
[374498223,1753325434812,-460.0,0.00019178,2]
[374498225,1753325434821,-403.03499378,0.00019178,2]
[374498227,1753325434830,-464.50817539,0.00019178,2]
[374498229,1753325434840,-461.3729255,0.00019178,2]
[374498231,1753325434850,-468.93614632,0.00019178,2]
[374498233,1753325434859,-466.8097373,0.00019178,2]
[374498235,1753325434870,-462.54667224,0.00019178,2]
[374498237,1753325434880,-460.0,0.00019178,2]
[374498239,1753325434890,-460.0,0.00019178,2]
[374498241,1753325434899,-460.0,0.00019178,2]
[374498243,1753325434909,-460.55826217,0.00019178,2]
[374498245,1753325434919,-460.0,0.00019178,2]
[374498247,1753325434928,-460.0,0.00019178,2]
[374498249,1753325434937,-460.0,0.00019178,2]
[374498251,1753325434947,-460.0,0.00019178,2]
[374498253,1753325434956,-460.0,0.00019178,2]
[374498255,1753325434966,-460.0,0.00019178,2]
[374498257,1753325434975,-521.42407489,0.00019178,2]
[374498259,1753325434985,-460.0,0.00019178,2]
[374498261,1753325434995,-460.0,0.00019178,2]
[374498263,1753325435005,-460.0,0.00019178,2]
[374498265,1753325435015,-460.0,0.00019178,2]
[374498267,1753325435026,-460.0,0.00019178,2]
[374498269,1753325435035,-300.95510676,0.00019178,2]
[374498271,1753325435045,-462.83872228,0.00019178,2]
[374498273,1753325435055,-463.2765404,0.00019178,2]
[374498275,1753325435064,-460.0,0.00019178,2]
[374498277,1753325435074,-460.0,0.00019178,2]
[374498279,1753325435083,-461.62403105,0.00019178,2]
[374498281,1753325435092,-461.06035806,0.00019178,2]
[374498283,1753325435102,-460.0,0.00019178,2]
[374498284,1753325435111,-460.0,0.00019178,2]
[374498286,1753325435120,-461.16122726,0.00019178,2]
[374498288,1753325435129,-460.0,0.00019178,2]
[374498290,1753325435139,-460.0,0.00019178,2]
[374498292,1753325435148,-460.0,0.00019178,2]
[374498295,1753325435159,-460.0,0.00019178,2]
[374498296,1753325435171,-460.0,0.00019178,2]
[374498298,1753325435182,-460.0,0.00019178,2]
[374498300,1753325435191,-462.49554281,0.00019178,2]
[374498302,1753325435201,-460.0,0.00019178,2]
[374498304,1753325435212,-460.0,0.00019178,2]
[374498306,1753325435222,-464.17950056,0.00019178,2]
[374498308,1753325435231,-460.0,0.00019178,2]
[374498310,1753325435240,-460.0,0.00019178,2]
[374498312,1753325435251,-460.0,0.00019178,2]
[374498314,1753325435262,-461.28483616,0.00019178,2]
[374498316,1753325435271,-151.0,0.00019178,2]
[374498318,1753325435281,-460.0,0.00019178,2]
[374498320,1753325435291,-151.0,0.00019178,2]
[374498322,1753325435301,-460.0,0.00019178,2]
[374498324,1753325435310,-460.0,0.00019178,2]
[374498326,1753325435320,-460.0,0.00019178,2]
[374498328,1753325435330,-460.0,0.00019178,2]
[374498330,1753325435340,-467.70062017,0.00019178,2]
[374498332,1753325435349,-462.08685477,0.00019178,2]
[374498334,1753325435359,-460.0,0.00019178,2]
[374498336,1753325435368,-460.0,0.00019178,2]
[374498338,1753325435377,-460.2480782,0.00019178,2]
[374498340,1753325435387,-460.0,0.00019178,2]
[374498341,1753325435396,-460.0,0.00019178,2]
[374498342,1753325435406,-460.0,0.00019178,2]
[374498343,1753325435415,-511.7,0.00019178,2]
[374498344,1753325435425,-462.38459365,0.00019178,2]
[374498345,1753325435434,-460.0,0.00019178,2]
[374498346,1753325435443,-462.8853913,0.00019178,2]
[374498347,1753325435453,-460.0,0.00019178,2]
[374498348,1753325435463,-461.9895477,0.00019178,2]
[374498349,1753325435472,-460.0,0.00019178,2]
[374498350,1753325435481,-462.44628673,0.00019178,2]
[374498351,1753325435491,-460.0,0.00019178,2]
[374498352,1753325435500,-460.0,0.00019178,2]
[374498353,1753325435510,-502.64705718,0.00019178,2]
[374498354,1753325435520,-460.0,0.00019178,2]
[374498355,1753325435529,-498.25228444,0.00019178,2]
[374498356,1753325435539,-460.0,0.00019178,2]
[374498357,1753325435548,-431.05632203,0.00019178,2]
[374498358,1753325435558,-463.36922938,0.00019178,2]
[374498359,1753325435567,-463.13105407,0.00019178,2]
[374498360,1753325435577,-460.0,0.00019178,2]
[374498361,1753325435587,-460.0,0.00019178,2]
[374498362,1753325435596,-460.0,0.00019178,2]
[374498363,1753325435606,-460.0,0.00019178,2]
[374498364,1753325435615,-460.0,0.00019178,2]
[374498365,1753325435626,-460.0,0.00019178,2]
[374498366,1753325435635,-463.66401674,0.00019178,2]
[374498367,1753325435644,-282.58283325,0.00019178,2]
[374498368,1753325435805,-177.41716675,0.00019178,2]
[374498369,1753325435815,-262.14783325,0.00019178,2]
[374498370,1753325435827,-197.85216675,0.00019178,2]
[374498371,1753325435836,-460.0,0.00019178,2]
[374498372,1753325435846,-467.08978409,0.00019178,2]
[374498373,1753325435855,-460.0,0.00019178,2]
[374498374,1753325435865,-460.0,0.00019178,2]
[374498375,1753325435875,-460.0,0.00019178,2]
[374498376,1753325435886,-460.0,0.00019178,2]
[374498377,1753325435895,-538.54262722,0.00019178,2]
[374498378,1753325435904,-500.0,0.00019178,2]
[374498379,1753325435914,-123.8912058,0.00019178,2]
[374498380,1753325435926,-376.1087942,0.00019178,2]
[374498381,1753325435936,-500.0,0.00019178,2]
[374498382,1753325435946,-500.0,0.00019178,2]
[374498383,1753325435956,-500.0,0.00019178,2]
[374498384,1753325435966,-500.0,0.00019178,2]
[374498385,1753325435976,-500.0,0.00019178,2]
[374498386,1753325435986,-500.0,0.00019178,2]
[374498387,1753325435995,-460.0,0.00019178,2]
[374498388,1753325436005,-500.0,0.00019178,2]
[374498389,1753325436015,-500.0,0.00019178,2]
[374498390,1753325436025,-500.0,0.00019178,2]
[374498391,1753325436035,-500.0,0.00019178,2]
[374498392,1753325436044,-500.0,0.00019178,2]
[374498393,1753325436054,-470.11366867,0.00019178,2]
[374498394,1753325436063,-500.0,0.00019178,2]
[374498395,1753325436072,-500.0,0.00019178,2]
[374498396,1753325436081,-500.0,0.00019178,2]
[374498397,1753325436091,-500.0,0.00019178,2]
[374498399,1753325436100,-460.0,0.00019178,2]
[374498401,1753325436109,-500.0,0.00019178,2]
[374498403,1753325436120,-460.0,0.00019178,2]
[374498405,1753325436129,-460.72990425,0.00019178,2]
[374498407,1753325436139,-386.17636027,0.00019178,2]
[374498409,1753325436148,-460.0,0.00019178,2]
[374498411,1753325436157,-460.0,0.00019178,2]
[374498413,1753325436167,-461.73144226,0.00019178,2]
[374498415,1753325436180,-460.0,0.00019178,2]
[374498417,1753325436190,-183.50964017,0.00019178,2]
[374498419,1753325436199,-460.0,0.00019178,2]
[374498421,1753325436209,-462.77344185,0.00019178,2]
[374498423,1753325436220,-460.0,0.00019178,2]
[374498425,1753325436230,-460.0,0.00019178,2]
[374498427,1753325436239,-460.0,0.00019178,2]
[374498429,1753325436249,-460.0,0.00019178,2]
[374498431,1753325436259,-460.0,0.00019178,2]
[374498433,1753325436269,-468.71658852,0.00019178,2]
[374498435,1753325436279,-460.0,0.00019178,2]
[374498437,1753325436288,-460.0,0.00019178,2]
[374498439,1753325436298,-460.0,0.00019178,2]
[374498441,1753325436308,-460.0,0.00019178,2]
[374498443,1753325436318,-460.0,0.00019178,2]
[374498445,1753325436329,-460.0,0.00019178,2]
[374498447,1753325436338,-651.65,0.00019178,2]
[374498449,1753325436347,-209.23722436,0.00019178,2]
[374498630,1753325438157,-500.0,0.00018765,2]
[374498632,1753325438166,-137.10940013,0.00018765,2]
[374498638,1753325438213,-173.11788864,0.00018765,2]
[374498640,1753325438222,-231.65251049,0.00019178,2]
[374498642,1753325438231,-460.0,0.00019178,2]
[374498644,1753325438240,-460.0,0.00019178,2]
[374498645,1753325438250,-460.0,0.00019178,2]
[374498648,1753325438260,-460.0,0.00019178,2]
[374498649,1753325438271,-190.8864044,0.00019178,2]
[374498651,1753325438280,-460.0,0.00019178,2]
[374498653,1753325438289,-460.0,0.00019178,2]
[374498655,1753325438299,-461.80860303,0.00019178,2]
[374498657,1753325438308,-460.0,0.00019178,2]
[374498660,1753325438319,-460.0,0.00019178,2]
[374498662,1753325438328,-460.0,0.00019178,2]
[374498664,1753325438338,-460.0,0.00019178,2]
[374498666,1753325438348,-460.94643036,0.00019178,2]
[374498668,1753325438357,-460.44705715,0.00019178,2]
[374498670,1753325438367,-541.21053539,0.00019178,2]
[374498672,1753325438377,-460.0,0.00019178,2]
[374498674,1753325438386,-511.18817335,0.00019178,2]
[374498675,1753325438396,-460.0,0.00019178,2]
[374498677,1753325438405,-460.0,0.00019178,2]
[374498679,1753325438415,-460.0,0.00019178,2]
[374498681,1753325438424,-460.0,0.00019178,2]
[374498683,1753325438433,-460.0,0.00019178,2]
[374498685,1753325438442,-460.0,0.00019178,2]
[374498687,1753325438452,-460.0,0.00019178,2]
[374498689,1753325438462,-460.0,0.00019178,2]
[374498691,1753325438471,-460.0,0.00019178,2]
[374498694,1753325438489,-460.0,0.00019178,2]
[374498696,1753325438501,-460.0,0.00019178,2]
[374498699,1753325438511,-448.47281966,0.00019178,2]
[374498701,1753325438521,-460.0,0.00019178,2]
[374498703,1753325438533,-460.0,0.00019178,2]
[374498705,1753325438543,-460.0,0.00019178,2]
[374498707,1753325438553,-460.0,0.00019178,2]
[374498709,1753325438563,-461.57097204,0.00019178,2]
[374498711,1753325438572,-542.69516882,0.00019178,2]
[374498713,1753325438582,-460.0,0.00019178,2]
[374498715,1753325438592,-460.0,0.00019178,2]
[374498717,1753325438601,-460.33024971,0.00019178,2]
[374498719,1753325438611,-460.0,0.00019178,2]
[374498721,1753325438620,-5492.11,0.00019178,2]
[374498723,1753325438631,-460.0,0.00019178,2]
[374498725,1753325438640,-460.0,0.00019178,2]
[374498727,1753325438652,-460.0,0.00019178,2]
[374498729,1753325438662,-460.0,0.00019178,2]
[374498731,1753325438672,-460.0,0.00019178,2]
[374498733,1753325438682,-461.72979241,0.00019178,2]
[374498735,1753325438692,-461.5974437,0.00019178,2]
[374498737,1753325438703,-460.0,0.00019178,2]
[374498739,1753325438712,-1866.88,0.00019178,2]
[374498741,1753325438722,-460.0,0.00019178,2]
[374498744,1753325438732,-151.0,0.00019178,2]
[374498746,1753325438742,-460.0,0.00019178,2]
[374498748,1753325438751,-463.04516729,0.00019178,2]
[374498750,1753325438761,-500.0,0.00019178,2]
[374498752,1753325438771,-460.0,0.00019178,2]
[374498754,1753325438780,-460.0,0.00019178,2]
[374498756,1753325438791,-462.69462181,0.00019178,2]
[374498758,1753325438800,-540.27186519,0.00019178,2]
[374498760,1753325438810,-152.10859249,0.00019178,2]
[374498762,1753325438820,-460.0,0.00019178,2]
[374498764,1753325438829,-151.51101564,0.00019178,2]
[374498766,1753325438839,-460.0,0.00019178,2]
[374498768,1753325438852,-460.0,0.00019178,2]
[374498769,1753325438862,-460.0,0.00019178,2]
[374498770,1753325438872,-460.0,0.00019178,2]
[374498771,1753325438882,-462.72380321,0.00019178,2]
[374498772,1753325438892,-500.0,0.00019178,2]
[374498773,1753325438901,-460.0,0.00019178,2]
[374498774,1753325438911,-460.0,0.00019178,2]
[374498775,1753325438920,-480.32678659,0.00019178,2]
[374498776,1753325438930,-460.0,0.00019178,2]
[374498777,1753325438940,-151.0,0.00019178,2]
[374498778,1753325438949,-460.0,0.00019178,2]
[374498779,1753325438960,-151.69841647,0.00019178,2]
[374498780,1753325438969,-461.64016259,0.00019178,2]
[374498781,1753325438978,-460.0,0.00019178,2]
[374498782,1753325438988,-460.71873073,0.00019178,2]
[374498783,1753325438997,-460.0,0.00019178,2]
[374498784,1753325439007,-460.31662258,0.00019178,2]
[374498785,1753325439016,-460.0,0.00019178,2]
[374498786,1753325439025,-292.0,0.00019178,2]
[374498787,1753325439035,-460.0,0.00019178,2]
[374498788,1753325439044,-151.0,0.00019178,2]
[374498789,1753325439053,-460.0,0.00019178,2]
[374498790,1753325439064,-460.0,0.00019178,2]
[374498791,1753325439073,-2729.14755816,0.00019178,2]
[374498792,1753325439089,-312.28244184,0.00019178,2]
[374498793,1753325439098,-460.0,0.00019178,2]
[374498794,1753325439107,-460.0,0.00019178,2]
[374498795,1753325439117,-460.0,0.00019178,2]
[374498796,1753325439128,-460.35722672,0.00019178,2]
[374498797,1753325439138,-460.0,0.00019178,2]
[374498798,1753325439148,-460.0,0.00019178,2]
[374498799,1753325439158,-460.0,0.00019178,2]
[374498800,1753325439168,-729.9,0.00019178,2]
[374498801,1753325439187,-327.16650141,0.00019178,2]
[374498802,1753325439206,-796.0,0.00019178,2]
[374498803,1753325439220,-460.0,0.00019178,2]
[374498804,1753325439230,-464.75458397,0.00019178,2]
[374498805,1753325439240,-460.49595602,0.00019178,2]
[374498806,1753325439251,-460.0,0.00019178,2]
[374498807,1753325439260,-460.66194728,0.00019178,2]
[374498808,1753325439270,-462.81759673,0.00019178,2]
[374498809,1753325439281,-460.0,0.00019178,2]
[374498810,1753325439291,-460.0,0.00019178,2]
[374498811,1753325439301,-460.0,0.00019178,2]
[374498812,1753325439311,-151.0,0.00019178,2]
[374498813,1753325439321,-460.50505922,0.00019178,2]
[374498814,1753325439331,-151.0,0.00019178,2]
[374498815,1753325439342,-522.05,0.00019178,2]
[374498816,1753325439351,-436.71047438,0.00019178,2]
[374498817,1753325439361,-460.0,0.00019178,2]
[374498818,1753325439370,-460.0,0.00019178,2]
[374498819,1753325439381,-460.0,0.00019178,2]
[374498820,1753325439391,-463.21482531,0.00019178,2]
[374498821,1753325439401,-460.0,0.00019178,2]
[374498822,1753325439410,-460.0,0.00019178,2]
[374498823,1753325439420,-599.91,0.00019178,2]
[374498824,1753325439430,-465.34327709,0.00019178,2]
[374498825,1753325439440,-460.95,0.00019178,2]
[374498826,1753325439450,-548.60971573,0.00019178,2]
[374498827,1753325439459,-439.18322323,0.00019178,2]
[374498828,1753325439470,-460.0,0.00019178,2]
[374498829,1753325439479,-583.55,0.00019178,2]
[374498830,1753325439489,-534.33,0.00019178,2]
[374498831,1753325439499,-460.0,0.00019178,2]
[374498832,1753325439508,-460.0,0.00019178,2]
[374498833,1753325439518,-460.0,0.00019178,2]
[374498834,1753325439528,-460.0,0.00019178,2]
[374498835,1753325439538,-534.33,0.00019178,2]
[374498836,1753325439547,-534.33,0.00019178,2]
[374498837,1753325439557,-461.69479104,0.00019178,2]
[374498838,1753325439567,-534.33,0.00019178,2]
[374498839,1753325439576,-534.33,0.00019178,2]
[374498840,1753325439590,-534.33,0.00019178,2]
[374498841,1753325439601,-534.33,0.00019178,2]
[374498842,1753325439610,-534.33,0.00019178,2]
[374498843,1753325439620,-534.33,0.00019178,2]
[374498844,1753325439630,-534.33,0.00019178,2]
[374498845,1753325439638,-468.02116314,0.00019178,2]
[374498846,1753325439648,-534.33,0.00019178,2]
[374498847,1753325439658,-460.0,0.00019178,2]
[374498848,1753325439667,-0.62582183,0.00019178,2]
[374498849,1753325439681,-533.70417817,0.00019178,2]
[374498850,1753325439691,-534.33,0.00019178,2]
[374498851,1753325439701,-432.55570371,0.00019178,2]
[374498852,1753325439714,-101.77429629,0.00019178,2]
[374498853,1753325439724,-534.33,0.00019178,2]
[374498854,1753325439733,-534.33,0.00019178,2]
[374498855,1753325439743,-534.33,0.00019178,2]
[374498857,1753325439753,-534.33,0.00019178,2]
[374498858,1753325439762,-534.33,0.00019178,2]
[374498859,1753325439772,-534.33,0.00019178,2]
[374498860,1753325439782,-534.33,0.00019178,2]
[374498861,1753325439792,-534.33,0.00019178,2]
[374498862,1753325439801,-534.33,0.00019178,2]
[374498863,1753325439811,-304.31366311,0.00019178,2]
[374498864,1753325439823,-230.2342347,0.00019178,2]
[374498865,1753325439833,-72.62820724,0.00019178,2]
[374498866,1753325439845,-387.37179276,0.00019178,2]
[374498867,1753325439855,-460.0,0.00019178,2]
[374498868,1753325439865,-254.00795824,0.00019178,2]
[374498869,1753325439877,-205.99204176,0.00019178,2]
[374498870,1753325439887,-64.14337375,0.00019178,2]
[374498871,1753325439898,-395.85662625,0.00019178,2]
[374498872,1753325439908,-526.68788272,0.00019178,2]
[374498873,1753325439918,-460.0,0.00019178,2]
[374498874,1753325439929,-460.0,0.00019178,2]
[374498875,1753325439938,-464.71905104,0.00019178,2]
[374498876,1753325439947,-460.0,0.00019178,2]
[374498877,1753325439957,-460.0,0.00019178,2]